[Event "*** Titled Tuesday Blitz AM"]
[Site "Chess.com"]
[Date "2020.01.07"]
[Round "2"]
[White "MarcoRiehle"]
[Black "KhazarBabazada"]
[Result "0-1"]
[WhiteElo "2627"]
[BlackElo "2908"]
[TimeControl "180+2"]
[EndTime "9:24:23 PST"]
[Termination "KhazarBabazada won by resignation"]

1. e4 {[%clk 0:03:01.7]} 1... c5 {[%clk 0:03:00.3]} 2. Nf3 {[%clk 0:03:02.6]}
2... d6 {[%clk 0:02:59.2]} 3. d4 {[%clk 0:03:02.6]} 3... cxd4 {[%clk 0:03:01.1]}
4. Nxd4 {[%clk 0:03:04.4]} 4... Nf6 {[%clk 0:02:59]} 5. f3 {[%clk 0:03:05.2]}
5... a6 {[%clk 0:02:59.5]} 6. c4 {[%clk 0:03:05.3]} 6... g6 {[%clk 0:03:00]} 7.
Nc3 {[%clk 0:03:06.3]} 7... Bg7 {[%clk 0:03:00.9]} 8. Be3 {[%clk 0:03:06.7]}
8... O-O {[%clk 0:03:02.4]} 9. Qd2 {[%clk 0:03:07.6]} 9... b6 {[%clk 0:02:58.7]}
10. Be2 {[%clk 0:03:08.5]} 10... Bb7 {[%clk 0:02:59.7]} 11. O-O {[%clk
0:03:09.3]} 11... Nbd7 {[%clk 0:03:00.2]} 12. Rfd1 {[%clk 0:03:09.1]} 12... Rc8
{[%clk 0:02:59.2]} 13. Rac1 {[%clk 0:03:09.1]} 13... h5 {[%clk 0:02:48.9]} 14.
Bf1 {[%clk 0:03:08.2]} 14... Qc7 {[%clk 0:02:39.5]} 15. b4 {[%clk 0:03:05.1]}
15... Ne5 {[%clk 0:02:38.7]} 16. Nd5 {[%clk 0:03:04.6]} 16... Nxd5 {[%clk
0:02:32.2]} 17. cxd5 {[%clk 0:03:06.5]} 17... Qd7 {[%clk 0:02:33.5]} 18. Nb3
{[%clk 0:03:02.7]} 18... f5 {[%clk 0:02:29.4]} 19. exf5 {[%clk 0:02:59.2]} 19...
Qxf5 {[%clk 0:02:23.8]} 20. Bxb6 {[%clk 0:02:58.5]} 20... h4 {[%clk 0:02:18.2]}
21. Nd4 {[%clk 0:02:54.5]} 21... Qh5 {[%clk 0:02:02.7]} 22. Ne6 {[%clk 0:02:54]}
22... Rxc1 {[%clk 0:01:54.2]} 23. Qxc1 {[%clk 0:02:42]} 23... Rc8 {[%clk
0:01:40.4]} 24. Qe3 {[%clk 0:02:28.2]} 24... Bh6 {[%clk 0:01:41.3]} 25. Qe4
{[%clk 0:02:29.6]} 25... Rc3 {[%clk 0:01:31]} 26. Bd4 {[%clk 0:02:07.7]} 26...
Rxf3 {[%clk 0:01:22.2]} 27. Bxe5 {[%clk 0:02:00.7]} 27... Rf7 {[%clk 0:00:32.8]}
28. Be2 {[%clk 0:01:14.8]} 28... Qxe5 {[%clk 0:00:33.3]} 29. Qxe5 {[%clk
0:01:16.4]} 29... dxe5 {[%clk 0:00:35.2]} 30. Nd8 {[%clk 0:01:17.7]} 30... Be3+
{[%clk 0:00:31.1]} 31. Kh1 {[%clk 0:01:18.8]} 31... Rf2 {[%clk 0:00:33]} 32. Bc4
{[%clk 0:01:20.4]} 32... Ba8 {[%clk 0:00:26.1]} 33. Nc6 {[%clk 0:01:11.9]} 33...
Kg7 {[%clk 0:00:24.7]} 34. Nxe5 {[%clk 0:01:09.8]} 34... Rc2 {[%clk 0:00:25.3]}
35. Bb3 {[%clk 0:01:10.2]} 35... Re2 {[%clk 0:00:23.5]} 36. Nc6 {[%clk
0:01:02.2]} 36... Bf4 {[%clk 0:00:19.2]} 37. Nd4 {[%clk 0:01:02.1]} 37... Re4
{[%clk 0:00:19.9]} 38. Ne6+ {[%clk 0:01:02.6]} 38... Kf6 {[%clk 0:00:20.2]} 39.
Rf1 {[%clk 0:01:02.7]} 39... g5 {[%clk 0:00:21.3]} 40. g3 {[%clk 0:01:02.3]}
40... Rxe6 {[%clk 0:00:22.5]} 41. gxf4 {[%clk 0:01:03.4]} 41... g4 {[%clk
0:00:23.6]} 42. Kg2 {[%clk 0:00:59.8]} 42... Re2+ {[%clk 0:00:24.6]} 43. Rf2
{[%clk 0:01:00.9]} 43... Re3 {[%clk 0:00:23.3]} 44. Rc2 {[%clk 0:00:59.6]} 44...
e6 {[%clk 0:00:23]} 45. Rc8 {[%clk 0:00:49.1]} 45... Bxd5+ {[%clk 0:00:22.5]}
46. Bxd5 {[%clk 0:00:50.8]} 46... exd5 {[%clk 0:00:24.4]} 47. Rc6+ {[%clk
0:00:45.5]} 47... Kf5 {[%clk 0:00:24.6]} 48. Rxa6 {[%clk 0:00:47.4]} 48... Re2+
{[%clk 0:00:24.3]} 49. Kg1 {[%clk 0:00:47.5]} 49... Kxf4 {[%clk 0:00:25.2]} 50.
b5 {[%clk 0:00:46.6]} 50... d4 {[%clk 0:00:24.5]} 51. b6 {[%clk 0:00:42.7]}
51... Rb2 {[%clk 0:00:21.3]} 52. Kf1 {[%clk 0:00:41.2]} 52... d3 {[%clk
0:00:22.2]} 53. Ke1 {[%clk 0:00:42.3]} 53... Ke3 {[%clk 0:00:22.3]} 54. Kf1
{[%clk 0:00:38.6]} 54... h3 {[%clk 0:00:23.7]} 0-1

[Event "*** Titled Tuesday Blitz AM"]
[Site "Chess.com"]
[Date "2020.01.07"]
[Round "2"]
[White "Sjakkerntobi"]
[Black "SCIM"]
[Result "1-0"]
[WhiteElo "2259"]
[BlackElo "2488"]
[TimeControl "180+2"]
[EndTime "9:24:25 PST"]
[Termination "Sjakkerntobi won by resignation"]

1. e4 {[%clk 0:03:01.9]} 1... c5 {[%clk 0:02:57.7]} 2. Nf3 {[%clk 0:03:02.8]}
2... e6 {[%clk 0:02:58.6]} 3. d4 {[%clk 0:03:03.2]} 3... cxd4 {[%clk 0:03:00.5]}
4. Nxd4 {[%clk 0:03:04.7]} 4... Nc6 {[%clk 0:03:02]} 5. Nc3 {[%clk 0:03:05.3]}
5... Qc7 {[%clk 0:03:03]} 6. Be2 {[%clk 0:03:00]} 6... Nf6 {[%clk 0:02:59.1]} 7.
O-O {[%clk 0:02:58.8]} 7... Be7 {[%clk 0:03:00.4]} 8. Be3 {[%clk 0:02:58.8]}
8... O-O {[%clk 0:03:00.6]} 9. f4 {[%clk 0:02:59.1]} 9... d6 {[%clk 0:03:01.2]}
10. Qe1 {[%clk 0:02:54.3]} 10... Nxd4 {[%clk 0:02:59.7]} 11. Bxd4 {[%clk
0:02:56.2]} 11... e5 {[%clk 0:03:01.3]} 12. Be3 {[%clk 0:02:55.4]} 12... b6
{[%clk 0:02:58.1]} 13. Rd1 {[%clk 0:02:48.4]} 13... Bb7 {[%clk 0:02:58.3]} 14.
Bd3 {[%clk 0:02:43.9]} 14... Kh8 {[%clk 0:02:46.2]} 15. Kh1 {[%clk 0:02:00.9]}
15... Rad8 {[%clk 0:02:40.9]} 16. Nd5 {[%clk 0:01:56.2]} 16... Bxd5 {[%clk
0:02:29.5]} 17. exd5 {[%clk 0:01:58.1]} 17... e4 {[%clk 0:02:30.6]} 18. Be2
{[%clk 0:01:49.8]} 18... Qxc2 {[%clk 0:02:26.2]} 19. Bd4 {[%clk 0:01:45.6]}
19... Qa4 {[%clk 0:02:20.7]} 20. a3 {[%clk 0:01:31.4]} 20... Rc8 {[%clk
0:02:17.4]} 21. g4 {[%clk 0:01:26.7]} 21... Rc2 {[%clk 0:01:51.9]} 22. Bc3
{[%clk 0:01:02.3]} 22... e3 {[%clk 0:01:30.6]} 23. Bd3 {[%clk 0:00:57.8]} 23...
Rxc3 {[%clk 0:01:24.4]} 24. bxc3 {[%clk 0:00:57.3]} 24... Nxd5 {[%clk
0:01:21.8]} 25. c4 {[%clk 0:00:48.7]} 25... Nf6 {[%clk 0:01:14]} 26. Qxe3 {[%clk
0:00:46.7]} 26... Bd8 {[%clk 0:00:52.7]} 27. g5 {[%clk 0:00:47.6]} 27... Qc6+
{[%clk 0:00:41.7]} 28. Kg1 {[%clk 0:00:45.9]} 28... Ng4 {[%clk 0:00:42.8]} 29.
Qh3 {[%clk 0:00:43.7]} 29... Qc5+ {[%clk 0:00:39.1]} 30. Kh1 {[%clk 0:00:39.7]}
30... Qc6+ {[%clk 0:00:33.8]} 31. Qf3 {[%clk 0:00:31.5]} 31... Qxf3+ {[%clk
0:00:06.2]} 32. Rxf3 {[%clk 0:00:33.4]} 32... f6 {[%clk 0:00:04.6]} 33. h3
{[%clk 0:00:33.5]} 33... fxg5 {[%clk 0:00:05.8]} 34. hxg4 {[%clk 0:00:34.6]}
34... gxf4 {[%clk 0:00:07.3]} 35. Bf5 {[%clk 0:00:35.3]} 35... Bf6 {[%clk
0:00:04.2]} 36. Rxd6 {[%clk 0:00:34.8]} 36... Be5 {[%clk 0:00:04.1]} 37. Rd7
{[%clk 0:00:35]} 37... g6 {[%clk 0:00:04.7]} 38. Be4 {[%clk 0:00:35.7]} 38...
Re8 {[%clk 0:00:04.9]} 39. Bd5 {[%clk 0:00:36.8]} 39... Bb8 {[%clk 0:00:03.6]}
40. Kg2 {[%clk 0:00:35.7]} 40... h5 {[%clk 0:00:03.9]} 41. gxh5 {[%clk
0:00:35.8]} 41... g5 {[%clk 0:00:05.6]} 42. Bf7 {[%clk 0:00:29.3]} 42... Re1
{[%clk 0:00:03.9]} 43. Rd8+ {[%clk 0:00:29.8]} 43... Kg7 {[%clk 0:00:05.2]} 44.
Rxb8 {[%clk 0:00:30.6]} 44... Kxf7 {[%clk 0:00:05.9]} 45. Rb7+ {[%clk
0:00:31.7]} 45... Kf6 {[%clk 0:00:07.1]} 46. Rxa7 {[%clk 0:00:32.4]} 46... Re2+
{[%clk 0:00:05.4]} 47. Rf2 {[%clk 0:00:33.5]} 47... Re3 {[%clk 0:00:06.4]} 48.
Rb7 {[%clk 0:00:33.7]} 48... Rxa3 {[%clk 0:00:04.9]} 49. Rxb6+ {[%clk 0:00:35]}
49... Kf5 {[%clk 0:00:06.8]} 50. Rb5+ {[%clk 0:00:35.3]} 50... Kg4 {[%clk
0:00:07.6]} 51. h6 {[%clk 0:00:35.8]} 51... Rg3+ {[%clk 0:00:07.8]} 52. Kf1
{[%clk 0:00:35.6]} 52... f3 {[%clk 0:00:09]} 53. c5 {[%clk 0:00:35]} 53... Rh3
{[%clk 0:00:09.3]} 54. Rb4+ {[%clk 0:00:34.6]} 54... Kg3 {[%clk 0:00:09.4]} 55.
Rxf3+ {[%clk 0:00:33]} 55... Kxf3 {[%clk 0:00:09.6]} 56. Rb3+ {[%clk 0:00:34.6]}
1-0

[Event "*** Titled Tuesday Blitz AM"]
[Site "Chess.com"]
[Date "2020.01.07"]
[Round "2"]
[White "vlad10898"]
[Black "ChessFunMaker"]
[Result "1-0"]
[WhiteElo "2676"]
[BlackElo "2356"]
[TimeControl "180+2"]
[EndTime "9:24:27 PST"]
[Termination "vlad10898 won by checkmate"]

1. e4 {[%clk 0:03:01.9]} 1... c5 {[%clk 0:02:51.3]} 2. Nf3 {[%clk 0:03:01.5]}
2... d6 {[%clk 0:02:52.3]} 3. d4 {[%clk 0:03:02.8]} 3... cxd4 {[%clk 0:02:53.6]}
4. Nxd4 {[%clk 0:03:04.7]} 4... Nf6 {[%clk 0:02:55.1]} 5. Nc3 {[%clk 0:03:06.4]}
5... a6 {[%clk 0:02:56.2]} 6. Bg5 {[%clk 0:03:07.5]} 6... e6 {[%clk 0:02:56.8]}
7. f4 {[%clk 0:03:07.3]} 7... h6 {[%clk 0:02:58.2]} 8. Bh4 {[%clk 0:03:08.1]}
8... Be7 {[%clk 0:02:59.3]} 9. Qf3 {[%clk 0:03:03.2]} 9... Nbd7 {[%clk
0:03:00.8]} 10. O-O-O {[%clk 0:03:03]} 10... Qc7 {[%clk 0:03:02.4]} 11. Be2
{[%clk 0:03:03.6]} 11... b5 {[%clk 0:03:00.3]} 12. Bxf6 {[%clk 0:02:51.7]} 12...
Nxf6 {[%clk 0:02:56.8]} 13. e5 {[%clk 0:02:51.7]} 13... Bb7 {[%clk 0:02:56.3]}
14. Qg3 {[%clk 0:02:53.3]} 14... dxe5 {[%clk 0:02:53.4]} 15. fxe5 {[%clk
0:02:55.2]} 15... Nd5 {[%clk 0:02:49.5]} 16. Nxe6 {[%clk 0:02:53.7]} 16... fxe6
{[%clk 0:02:41.8]} 17. Qg6+ {[%clk 0:02:54.1]} 17... Kd7 {[%clk 0:02:39.4]} 18.
Bg4 {[%clk 0:02:55.2]} 18... Qxe5 {[%clk 0:02:09.5]} 19. Nxd5 {[%clk 0:02:53.7]}
19... Bxd5 {[%clk 0:01:58]} 20. Rxd5+ {[%clk 0:02:25.4]} 20... Qxd5 {[%clk
0:01:54.1]} 21. Rd1 {[%clk 0:02:26.7]} 21... Bg5+ {[%clk 0:01:22.8]} 22. Kb1
{[%clk 0:02:09.9]} 22... Qxd1+ {[%clk 0:01:23.9]} 23. Bxd1 {[%clk 0:02:11.8]}
23... Bf6 {[%clk 0:01:14.7]} 24. Qf7+ {[%clk 0:02:12.6]} 24... Kd6 {[%clk
0:01:13.8]} 25. Bf3 {[%clk 0:02:13.5]} 25... Rab8 {[%clk 0:00:49.6]} 26. Bg4
{[%clk 0:02:13.3]} 26... Rhe8 {[%clk 0:00:48.1]} 27. Qa7 {[%clk 0:02:13.6]}
27... Ke5 {[%clk 0:00:17.9]} 28. Qc5+ {[%clk 0:01:48.1]} 28... Kf4 {[%clk
0:00:17.1]} 29. Bh5 {[%clk 0:01:49.4]} 29... Red8 {[%clk 0:00:16.6]} 30. g3+
{[%clk 0:01:45.5]} 30... Ke4 {[%clk 0:00:14.8]} 31. Qc6+ {[%clk 0:01:32.4]}
31... Rd5 {[%clk 0:00:07.9]} 32. Qxe6+ {[%clk 0:01:28.6]} 32... Re5 {[%clk
0:00:08.7]} 33. Qc6+ {[%clk 0:01:28.1]} 33... Ke3 {[%clk 0:00:07]} 34. Qf3+
{[%clk 0:01:20]} 34... Kd4 {[%clk 0:00:04.9]} 35. a3 {[%clk 0:00:45.9]} 35...
Rd8 {[%clk 0:00:05.6]} 36. Qc3+ {[%clk 0:00:27.6]} 36... Kd5 {[%clk 0:00:06.6]}
37. Bf3+ {[%clk 0:00:27.1]} 37... Kd6 {[%clk 0:00:07.5]} 38. Qc6+ {[%clk
0:00:27.9]} 38... Ke7 {[%clk 0:00:08]} 39. Qxa6 {[%clk 0:00:28.6]} 39... Rd2
{[%clk 0:00:03.6]} 40. Qb7+ {[%clk 0:00:24.7]} 40... Kf8 {[%clk 0:00:03.1]} 41.
Qc8+ {[%clk 0:00:19.9]} 41... Rd8 {[%clk 0:00:02.6]} 42. Qc6 {[%clk 0:00:19.5]}
42... Re1+ {[%clk 0:00:02.7]} 43. Ka2 {[%clk 0:00:20.6]} 43... Re5 {[%clk
0:00:03.7]} 44. h4 {[%clk 0:00:21.3]} 44... Rde8 {[%clk 0:00:02.9]} 45. Bh5
{[%clk 0:00:22]} 45... Rd8 {[%clk 0:00:03.9]} 46. Bg6 {[%clk 0:00:22.2]} 46...
Re7 {[%clk 0:00:03.5]} 47. Qxb5 {[%clk 0:00:21.6]} 47... Be5 {[%clk 0:00:04.7]}
48. c3 {[%clk 0:00:19.5]} 48... Rb8 {[%clk 0:00:06]} 49. Qf1+ {[%clk 0:00:20]}
49... Kg8 {[%clk 0:00:04.2]} 50. Bc2 {[%clk 0:00:19.3]} 50... Reb7 {[%clk
0:00:04.7]} 51. b4 {[%clk 0:00:20.1]} 51... Bxc3 {[%clk 0:00:05.4]} 52. Qc4+
{[%clk 0:00:21]} 52... Kh8 {[%clk 0:00:06.3]} 53. Qxc3 {[%clk 0:00:22.5]} 53...
Ra7 {[%clk 0:00:06.4]} 54. Qd3 {[%clk 0:00:23.3]} 54... Rba8 {[%clk 0:00:05.3]}
55. Qh7# {[%clk 0:00:24.2]} 1-0

[Event "*** Titled Tuesday Blitz AM"]
[Site "Chess.com"]
[Date "2020.01.07"]
[Round "2"]
[White "heyiampotato"]
[Black "levallem"]
[Result "1-0"]
[WhiteElo "2471"]
[BlackElo "2178"]
[TimeControl "180+2"]
[EndTime "9:24:31 PST"]
[Termination "heyiampotato won by resignation"]

1. d4 {[%clk 0:03:01.9]} 1... d5 {[%clk 0:02:57.7]} 2. c4 {[%clk 0:03:02.4]}
2... e6 {[%clk 0:02:56]} 3. Nc3 {[%clk 0:03:00.8]} 3... c6 {[%clk 0:02:56.1]} 4.
e3 {[%clk 0:02:50.7]} 4... Nf6 {[%clk 0:02:56.5]} 5. Nf3 {[%clk 0:02:50.8]} 5...
Nbd7 {[%clk 0:02:56.4]} 6. Qc2 {[%clk 0:02:51.7]} 6... b6 {[%clk 0:02:56.7]} 7.
b3 {[%clk 0:02:52.2]} 7... Bb7 {[%clk 0:02:57.8]} 8. Be2 {[%clk 0:02:52.4]} 8...
Rc8 {[%clk 0:02:59.1]} 9. O-O {[%clk 0:02:52.5]} 9... Be7 {[%clk 0:02:59.9]} 10.
Bb2 {[%clk 0:02:53.1]} 10... O-O {[%clk 0:03:01.3]} 11. Rfd1 {[%clk 0:02:41.8]}
11... Qc7 {[%clk 0:03:02.1]} 12. Rac1 {[%clk 0:02:42.2]} 12... Qb8 {[%clk
0:03:03]} 13. g3 {[%clk 0:02:33.4]} 13... Rfd8 {[%clk 0:02:56.5]} 14. cxd5
{[%clk 0:02:24]} 14... cxd5 {[%clk 0:02:53]} 15. Qd3 {[%clk 0:02:22.9]} 15... a6
{[%clk 0:02:51]} 16. Bf1 {[%clk 0:02:21.5]} 16... Rc7 {[%clk 0:02:47.5]} 17. Bg2
{[%clk 0:02:12.5]} 17... Rdc8 {[%clk 0:02:46.8]} 18. Ne2 {[%clk 0:01:50.4]}
18... Rxc1 {[%clk 0:02:46.1]} 19. Rxc1 {[%clk 0:01:51.5]} 19... Rxc1+ {[%clk
0:02:47.5]} 20. Nxc1 {[%clk 0:01:52.5]} 20... Qc7 {[%clk 0:02:46.6]} 21. Ne2
{[%clk 0:01:53.1]} 21... Ne4 {[%clk 0:02:43.3]} 22. Nd2 {[%clk 0:01:52.9]} 22...
Nxd2 {[%clk 0:02:38.2]} 23. Qxd2 {[%clk 0:01:54.8]} 23... h5 {[%clk 0:02:07.8]}
24. h3 {[%clk 0:01:52.6]} 24... Bd6 {[%clk 0:02:00.1]} 25. Nf4 {[%clk
0:01:49.2]} 25... g6 {[%clk 0:01:52.4]} 26. h4 {[%clk 0:01:42.7]} 26... Nf6
{[%clk 0:01:52.4]} 27. f3 {[%clk 0:01:36.6]} 27... Bc6 {[%clk 0:01:48.2]} 28.
Bf1 {[%clk 0:01:35.9]} 28... a5 {[%clk 0:01:45.2]} 29. Bd3 {[%clk 0:01:36.1]}
29... Kg7 {[%clk 0:01:43.9]} 30. Kf2 {[%clk 0:01:31.5]} 30... Bxf4 {[%clk
0:01:33.3]} 31. gxf4 {[%clk 0:01:27.8]} 31... Qe7 {[%clk 0:01:31.2]} 32. Qc1
{[%clk 0:01:20.2]} 32... Qd7 {[%clk 0:01:21.5]} 33. a4 {[%clk 0:01:19.7]} 33...
Ne8 {[%clk 0:01:17.2]} 34. e4 {[%clk 0:01:01]} 34... Nd6 {[%clk 0:01:07.4]} 35.
Qe3 {[%clk 0:01:01.6]} 35... Qe7 {[%clk 0:01:00.4]} 36. Kg3 {[%clk 0:01:02.7]}
36... Ne8 {[%clk 0:00:37]} 37. Qc1 {[%clk 0:00:59.1]} 37... Qd7 {[%clk
0:00:35.4]} 38. f5 {[%clk 0:00:43.6]} 38... dxe4 {[%clk 0:00:21.1]} 39. fxe4
{[%clk 0:00:38.4]} 39... Qd6+ {[%clk 0:00:15.7]} 40. Qf4 {[%clk 0:00:33.7]}
40... Qxf4+ {[%clk 0:00:15.9]} 41. Kxf4 {[%clk 0:00:35.6]} 41... Bd7 {[%clk
0:00:16]} 42. fxg6 {[%clk 0:00:34.4]} 42... fxg6 {[%clk 0:00:14.8]} 43. d5+
{[%clk 0:00:32.1]} 43... Kf7 {[%clk 0:00:14]} 44. Ke5 {[%clk 0:00:30.5]} 44...
Nf6 {[%clk 0:00:11.1]} 45. Kd6 {[%clk 0:00:26.7]} 45... exd5 {[%clk 0:00:04.2]}
46. Bxf6 {[%clk 0:00:25]} 46... dxe4 {[%clk 0:00:03.2]} 47. Bxe4 {[%clk
0:00:21.5]} 47... Be6 {[%clk 0:00:03.2]} 48. Bd4 {[%clk 0:00:19.8]} 48... Bxb3
{[%clk 0:00:04.5]} 49. Bc6 {[%clk 0:00:21.1]} 49... Bxa4 {[%clk 0:00:06.4]} 50.
Bxa4 {[%clk 0:00:21.8]} 50... b5 {[%clk 0:00:06.4]} 51. Bxb5 {[%clk 0:00:22.6]}
51... g5 {[%clk 0:00:08.3]} 52. hxg5 {[%clk 0:00:23.5]} 52... Kg6 {[%clk
0:00:09.8]} 53. Bf6 {[%clk 0:00:23.3]} 53... h4 {[%clk 0:00:10.6]} 54. Kc5
{[%clk 0:00:21.4]} 54... h3 {[%clk 0:00:11.5]} 55. Bc6 {[%clk 0:00:22.4]} 55...
a4 {[%clk 0:00:12.1]} 56. Kb4 {[%clk 0:00:23.4]} 56... h2 {[%clk 0:00:13]} 57.
Kxa4 {[%clk 0:00:24.2]} 57... h1=Q {[%clk 0:00:13.4]} 58. Bxh1 {[%clk
0:00:24.6]} 1-0

[Event "*** Titled Tuesday Blitz AM"]
[Site "Chess.com"]
[Date "2020.01.07"]
[Round "2"]
[White "OneTrickPony_82"]
[Black "djamir"]
[Result "0-1"]
[WhiteElo "2447"]
[BlackElo "2751"]
[TimeControl "180+2"]
[EndTime "9:24:32 PST"]
[Termination "djamir won on time"]

1. d4 {[%clk 0:03:01.9]} 1... e6 {[%clk 0:02:47.8]} 2. Nf3 {[%clk 0:03:00.9]}
2... Nf6 {[%clk 0:02:48.9]} 3. c4 {[%clk 0:03:01.5]} 3... Bb4+ {[%clk
0:02:49.4]} 4. Bd2 {[%clk 0:03:02.3]} 4... c5 {[%clk 0:02:50.9]} 5. Bxb4 {[%clk
0:03:02.4]} 5... cxb4 {[%clk 0:02:52.8]} 6. e3 {[%clk 0:03:03.6]} 6... O-O
{[%clk 0:02:52.1]} 7. Bd3 {[%clk 0:03:04.6]} 7... d6 {[%clk 0:02:50.9]} 8. O-O
{[%clk 0:03:05.6]} 8... a5 {[%clk 0:02:52]} 9. Nbd2 {[%clk 0:03:06.6]} 9... Qe7
{[%clk 0:02:46.7]} 10. a3 {[%clk 0:03:02.6]} 10... Na6 {[%clk 0:02:47.6]} 11. h3
{[%clk 0:03:01.9]} 11... b6 {[%clk 0:02:47.5]} 12. Qc2 {[%clk 0:02:58.9]} 12...
Bb7 {[%clk 0:02:41.2]} 13. Ne4 {[%clk 0:02:52]} 13... Bxe4 {[%clk 0:02:28.6]}
14. Bxe4 {[%clk 0:02:52.9]} 14... Rac8 {[%clk 0:02:29.9]} 15. Bd3 {[%clk
0:02:36.7]} 15... e5 {[%clk 0:02:26.7]} 16. c5 {[%clk 0:02:14.2]} 16... Nxc5
{[%clk 0:02:27.2]} 17. dxc5 {[%clk 0:02:11.2]} 17... Rxc5 {[%clk 0:02:29]} 18.
Qb3 {[%clk 0:01:44.4]} 18... e4 {[%clk 0:02:26.8]} 19. Bxe4 {[%clk 0:01:41]}
19... Qxe4 {[%clk 0:02:03]} 20. Rfd1 {[%clk 0:01:36.2]} 20... d5 {[%clk
0:01:32.2]} 21. axb4 {[%clk 0:01:23.9]} 21... Rb5 {[%clk 0:00:59.7]} 22. Rd4
{[%clk 0:01:19.2]} 22... Qe7 {[%clk 0:00:58.6]} 23. Qa4 {[%clk 0:01:10.3]} 23...
Rxb4 {[%clk 0:00:58.7]} 24. Rxb4 {[%clk 0:01:11.5]} 24... axb4 {[%clk 0:00:58]}
25. Qc6 {[%clk 0:01:04.9]} 25... Qc5 {[%clk 0:00:57.3]} 26. Rc1 {[%clk
0:01:02.2]} 26... Qa5 {[%clk 0:00:56.5]} 27. Nd4 {[%clk 0:00:57.9]} 27... Qa2
{[%clk 0:00:50.7]} 28. b3 {[%clk 0:00:43.5]} 28... Ne4 {[%clk 0:00:51.2]} 29.
Rc2 {[%clk 0:00:44.5]} 29... Qb1+ {[%clk 0:00:43.5]} 30. Rc1 {[%clk 0:00:37.2]}
30... Qb2 {[%clk 0:00:44.3]} 31. Rc2 {[%clk 0:00:38.6]} 31... Qa1+ {[%clk
0:00:44.6]} 32. Rc1 {[%clk 0:00:39.8]} 32... Qa5 {[%clk 0:00:45.3]} 33. Nf5
{[%clk 0:00:36.7]} 33... Nc3 {[%clk 0:00:41.3]} 34. Kh2 {[%clk 0:00:30.3]} 34...
Qa7 {[%clk 0:00:19.9]} 35. g3 {[%clk 0:00:21.5]} 35... Qb8 {[%clk 0:00:16.4]}
36. Ra1 {[%clk 0:00:18.7]} 36... Qe5 {[%clk 0:00:17.3]} 37. Qd7 {[%clk
0:00:14.7]} 37... Ne4 {[%clk 0:00:14]} 38. Rf1 {[%clk 0:00:14.1]} 38... g6
{[%clk 0:00:13.5]} 39. Ne7+ {[%clk 0:00:14.3]} 39... Kg7 {[%clk 0:00:15]} 40.
Nxd5 {[%clk 0:00:15.4]} 40... Nc5 {[%clk 0:00:13.8]} 41. Qc6 {[%clk 0:00:10.5]}
41... Nxb3 {[%clk 0:00:13]} 42. Nxb4 {[%clk 0:00:10.7]} 42... Qc5 {[%clk
0:00:09.4]} 43. Qe4 {[%clk 0:00:09.5]} 43... Nd2 {[%clk 0:00:06.9]} 44. Qd3
{[%clk 0:00:02]} 44... Nxf1+ {[%clk 0:00:07.4]} 45. Kg2 {[%clk 0:00:02.3]} 45...
Qxb4 {[%clk 0:00:08.2]} 0-1